Workbook

Sheet Sheet1
B1: wave 1 | C1: wave 2 | D1: x | E1: y1 | F1: y2 | G1: y1 + y2
A2: amplitude | B2: =B22/100 -> 1 | C2: =C22/100 -> 1 | D2: 0 | E2: =$B$2*SIN($B$7*D2-$B$8*$B$11+$B$5) -> 1.166841623e-11 | F2: =$C$2*SIN($C$7*D2-$C$8*$B$11+$C$5) -> 1.166841623e-11 | G2: =E2+F2 -> 2.333683247e-11
A3: wavelength | B3: =B23/20 -> 1 | C3: =C23/20 -> 1 | D3: =D2+0.1 -> 0.1 | E3: =$B$2*SIN($B$7*D3-$B$8*$B$11+$B$5) -> 0.5877852523 | F3: =$C$2*SIN($C$7*D3-$C$8*$B$11+$C$5) -> 0.5877852523 | G3: =E3+F3 -> 1.175570505
A4: speed | B4: =B24/20 -> 1.2 | C4: =C24/20 -> 1.2 | D4: =D3+0.1 -> 0.2 | E4: 0.9510565163 | F4: =$C$2*SIN($C$7*D4-$C$8*$B$11+$C$5) -> 0.9510565163 | G4: =E4+F4 -> 1.902113033
A5: phase | B5: =B25*PI()/50 -> 0 | C5: =C25*PI()/50 -> 0 | D5: =D4+0.1 -> 0.3 | E5: 0.9510565163 | F5: =$C$2*SIN($C$7*D5-$C$8*$B$11+$C$5) -> 0.9510565163 | G5: =E5+F5 -> 1.902113033
A6: direction | B6: =IF(B26=TRUE,1,-1) -> 1 | C6: =IF(C26=TRUE,1,-1) -> 1 | D6: 0.4 | E6: 0.5877852523 | F6: 0.5877852523 | G6: 1.175570505
A7: k | B7: =2*PI()/B3 -> 6.283185307 | C7: =2*PI()/C3 -> 6.283185307 | D7: 0.5 | E7: -6.54172788e-12 | F7: -6.54172788e-12 | G7: -1.308345576e-11
A8: w | B8: =+B4*B7*B6 -> 7.539822369 | C8: =+C4*C7*C6 -> 7.539822369 | D8: 0.6 | E8: -0.5877852523 | F8: -0.5877852523 | G8: -1.175570505
D9: 0.7 | E9: -0.9510565163 | F9: -0.9510565163 | G9: -1.902113033
D10: 0.8 | E10: -0.9510565163 | F10: -0.9510565163 | G10: -1.902113033
A11: time | B11: 100000 | D11: 0.9 | E11: -0.5877852523 | F11: -0.5877852523 | G11: -1.175570505
D12: 1 | E12: 1.415039527e-12 | F12: 1.415039527e-12 | G12: 2.830079053e-12
D13: 1.1 | E13: 0.5877852523 | F13: 0.5877852523 | G13: 1.175570505
D14: 1.2 | E14: 0.9510565163 | F14: 0.9510565163 | G14: 1.902113033
D15: 1.3 | E15: 0.9510565163 | F15: 0.9510565163 | G15: 1.902113033
D16: 1.4 | E16: 0.5877852523 | F16: 0.5877852523 | G16: 1.175570505
D17: 1.5 | E17: 3.711648827e-12 | F17: 3.711648827e-12 | G17: 7.423297654e-12
D18: 1.6 | E18: -0.5877852523 | F18: -0.5877852523 | G18: -1.175570505
D19: 1.7 | E19: -0.9510565163 | F19: -0.9510565163 | G19: -1.902113033
D20: 1.8 | E20: -0.9510565163 | F20: -0.9510565163 | G20: -1.902113033
D21: 1.9 | E21: -0.5877852523 | F21: -0.5877852523 | G21: -1.175570505
B22: 100 | C22: 100 | D22: 2 | E22: -8.83833718e-12 | F22: -8.83833718e-12 | G22: -1.767667436e-11
B23: 20 | C23: 20 | D23: 2.1 | E23: 0.5877852523 | F23: 0.5877852523 | G23: 1.175570505
B24: 24 | C24: 24 | D24: 2.2 | E24: 0.9510565163 | F24: 0.9510565163 | G24: 1.902113033
B25: 0 | C25: 0 | D25: 2.3 | E25: 0.9510565163 | F25: 0.9510565163 | G25: 1.902113033
B26: TRUE | C26: TRUE | D26: 2.4 | E26: 0.5877852523 | F26: 0.5877852523 | G26: 1.175570505
D27: 2.5 | E27: 1.396502553e-11 | F27: 1.396502553e-11 | G27: 2.793005107e-11
D28: 2.6 | E28: -0.5877852523 | F28: -0.5877852523 | G28: -1.175570505
D29: 2.7 | E29: -0.9510565163 | F29: -0.9510565163 | G29: -1.902113033
D30: 2.8 | E30: -0.9510565163 | F30: -0.9510565163 | G30: -1.902113033
D31: 2.9 | E31: -0.5877852523 | F31: -0.5877852523 | G31: -1.175570505
D32: 3 | E32: -1.909171389e-11 | F32: -1.909171389e-11 | G32: -3.818342777e-11
D33: 3.1 | E33: 0.5877852523 | F33: 0.5877852523 | G33: 1.175570505
D34: 3.2 | E34: 0.9510565163 | F34: 0.9510565163 | G34: 1.902113033
D35: 3.3 | E35: 0.9510565163 | F35: 0.9510565163 | G35: 1.902113033
D36: 3.4 | E36: 0.5877852523 | F36: 0.5877852523 | G36: 1.175570505
D37: 3.5 | E37: 2.421840224e-11 | F37: 2.421840224e-11 | G37: 4.843680448e-11
D38: 3.6 | E38: -0.5877852523 | F38: -0.5877852523 | G38: -1.175570505
D39: 3.7 | E39: -0.9510565163 | F39: -0.9510565163 | G39: -1.902113033
D40: 3.8 | E40: -0.9510565163 | F40: -0.9510565163 | G40: -1.902113033
D41: 3.9 | E41: -0.5877852522 | F41: -0.5877852522 | G41: -1.175570504
D42: =D41+0.1 -> 4 | E42: -2.934509059e-11 | F42: -2.934509059e-11 | G42: -5.869018119e-11
D43: =D42+0.1 -> 4.1 | E43: 0.5877852523 | F43: =$C$2*SIN($C$7*D43-$C$8*$B$11+$C$5) -> 0.5877852523 | G43: =E43+F43 -> 1.175570505
D44: 4.2 | E44: 0.9510565163 | F44: 0.9510565163 | G44: 1.902113033
D45: 4.3 | E45: 0.9510565163 | F45: 0.9510565163 | G45: 1.902113033
D46: 4.4 | E46: 0.5877852522 | F46: 0.5877852522 | G46: 1.175570504
D47: 4.5 | E47: 3.447177895e-11 | F47: 3.447177895e-11 | G47: 6.894355789e-11
D48: 4.6 | E48: -0.5877852523 | F48: -0.5877852523 | G48: -1.175570505
D49: 4.7 | E49: -0.9510565163 | F49: -0.9510565163 | G49: -1.902113033
D50: 4.8 | E50: -0.9510565163 | F50: -0.9510565163 | G50: -1.902113033
D51: 4.9 | E51: -0.5877852522 | F51: -0.5877852522 | G51: -1.175570504
D52: 5 | E52: -3.95984673e-11 | F52: -3.95984673e-11 | G52: -7.91969346e-11
D53: 5.1 | E53: 0.5877852523 | F53: 0.5877852523 | G53: 1.175570505
D54: 5.2 | E54: 0.9510565163 | F54: 0.9510565163 | G54: 1.902113033
D55: 5.3 | E55: 0.9510565163 | F55: 0.9510565163 | G55: 1.902113033
D56: 5.4 | E56: 0.5877852523 | F56: 0.5877852523 | G56: 1.175570505
D57: 5.5 | E57: 4.472515565e-11 | F57: 4.472515565e-11 | G57: 8.945031131e-11
D58: 5.6 | E58: -0.5877852523 | F58: -0.5877852523 | G58: -1.175570505
D59: 5.7 | E59: -0.9510565163 | F59: -0.9510565163 | G59: -1.902113033
D60: 5.8 | E60: -0.9510565163 | F60: -0.9510565163 | G60: -1.902113033
D61: 5.9 | E61: -0.5877852523 | F61: -0.5877852523 | G61: -1.175570505
D62: 6 | E62: 6.656347782e-11 | F62: 6.656347782e-11 | G62: 1.331269556e-10
D63: 6.1 | E63: 0.5877852523 | F63: 0.5877852523 | G63: 1.175570505
D64: 6.2 | E64: 0.9510565163 | F64: 0.9510565163 | G64: 1.902113033
D65: 6.3 | E65: 0.9510565163 | F65: 0.9510565163 | G65: 1.902113033
D66: 6.4 | E66: 0.5877852523 | F66: 0.5877852523 | G66: 1.175570505
D67: 6.5 | E67: =$B$2*SIN($B$7*D67-$B$8*$B$11+$B$5) -> -6.143678947e-11 | F67: -6.143678947e-11 | G67: -1.228735789e-10
D68: 6.6 | E68: -0.5877852523 | F68: -0.5877852523 | G68: -1.175570505
D69: 6.7 | E69: -0.9510565163 | F69: -0.9510565163 | G69: -1.902113033
D70: 6.8 | E70: -0.9510565163 | F70: -0.9510565163 | G70: -1.902113033
D71: 6.9 | E71: -0.5877852523 | F71: -0.5877852523 | G71: -1.175570505
D72: 7 | E72: 5.631010111e-11 | F72: 5.631010111e-11 | G72: 1.126202022e-10
D73: 7.1 | E73: 0.5877852523 | F73: 0.5877852523 | G73: 1.175570505
D74: 7.2 | E74: 0.9510565163 | F74: 0.9510565163 | G74: 1.902113033
D75: 7.3 | E75: 0.9510565163 | F75: 0.9510565163 | G75: 1.902113033
D76: 7.4 | E76: 0.5877852523 | F76: 0.5877852523 | G76: 1.175570505
D77: 7.5 | E77: -5.118341276e-11 | F77: -5.118341276e-11 | G77: -1.023668255e-10
D78: 7.6 | E78: -0.5877852523 | F78: -0.5877852523 | G78: -1.175570505
D79: 7.7 | E79: -0.9510565163 | F79: -0.9510565163 | G79: -1.902113033
D80: 7.8 | E80: -0.9510565163 | F80: -0.9510565163 | G80: -1.902113033
D81: 7.9 | E81: -0.5877852523 | F81: -0.5877852523 | G81: -1.175570505
D82: 8 | E82: 4.605672441e-11 | F82: 4.605672441e-11 | G82: 9.211344881e-11
D83: 8.1 | E83: 0.5877852523 | F83: 0.5877852523 | G83: 1.175570505
D84: 8.2 | E84: 0.9510565163 | F84: 0.9510565163 | G84: 1.902113033
D85: 8.3 | E85: 0.9510565163 | F85: 0.9510565163 | G85: 1.902113033
D86: 8.4 | E86: 0.5877852523 | F86: 0.5877852523 | G86: 1.175570505
D87: 8.5 | E87: -4.093003605e-11 | F87: -4.093003605e-11 | G87: -8.186007211e-11
D88: 8.6 | E88: -0.5877852523 | F88: -0.5877852523 | G88: -1.175570505
D89: 8.7 | E89: -0.9510565163 | F89: -0.9510565163 | G89: -1.902113033
D90: 8.8 | E90: -0.9510565163 | F90: -0.9510565163 | G90: -1.902113033
D91: 8.9 | E91: -0.5877852523 | F91: -0.5877852523 | G91: -1.175570505
D92: 9 | E92: 3.58033477e-11 | F92: 3.58033477e-11 | G92: 7.16066954e-11
D93: 9.1 | E93: 0.5877852523 | F93: 0.5877852523 | G93: 1.175570505
D94: 9.2 | E94: 0.9510565163 | F94: 0.9510565163 | G94: 1.902113033
D95: 9.3 | E95: 0.9510565163 | F95: 0.9510565163 | G95: 1.902113033
D96: 9.4 | E96: 0.5877852523 | F96: 0.5877852523 | G96: 1.175570505
D97: 9.5 | E97: -3.067665935e-11 | F97: -3.067665935e-11 | G97: -6.135331869e-11
D98: 9.6 | E98: -0.5877852523 | F98: -0.5877852523 | G98: -1.175570505
D99: 9.7 | E99: -0.9510565163 | F99: -0.9510565163 | G99: -1.902113033
D100: 9.8 | E100: -0.9510565163 | F100: -0.9510565163 | G100: -1.902113033
D101: 9.9 | E101: -0.5877852523 | F101: -0.5877852523 | G101: -1.175570505
D102: 10 | E102: 2.554997099e-11 | F102: 2.554997099e-11 | G102: 5.109994199e-11
D103: =D102+0.1 -> 10.1 | E103: 0.5877852523 | F103: =$C$2*SIN($C$7*D103-$C$8*$B$11+$C$5) -> 0.5877852523 | G103: =E103+F103 -> 1.175570505
D104: 10.2 | E104: 0.9510565163 | F104: 0.9510565163 | G104: 1.902113033
D105: 10.3 | E105: 0.9510565163 | F105: 0.9510565163 | G105: 1.902113033
D106: 10.4 | E106: 0.5877852523 | F106: 0.5877852523 | G106: 1.175570505
D107: 10.5 | E107: -2.042328264e-11 | F107: -2.042328264e-11 | G107: -4.084656528e-11
D108: 10.6 | E108: -0.5877852523 | F108: -0.5877852523 | G108: -1.175570505
D109: 10.7 | E109: -0.9510565163 | F109: -0.9510565163 | G109: -1.902113033
D110: 10.8 | E110: -0.9510565163 | F110: -0.9510565163 | G110: -1.902113033
D111: 10.9 | E111: -0.5877852523 | F111: -0.5877852523 | G111: -1.175570505
D112: 11 | E112: 1.529659429e-11 | F112: 1.529659429e-11 | G112: 3.059318857e-11
D113: 11.1 | E113: 0.5877852523 | F113: 0.5877852523 | G113: 1.175570505
D114: 11.2 | E114: 0.9510565163 | F114: 0.9510565163 | G114: 1.902113033
D115: 11.3 | E115: 0.9510565163 | F115: 0.9510565163 | G115: 1.902113033
D116: 11.4 | E116: 0.5877852523 | F116: 0.5877852523 | G116: 1.175570505
D117: 11.5 | E117: -1.016990593e-11 | F117: -1.016990593e-11 | G117: -2.033981187e-11
D118: 11.6 | E118: -0.5877852523 | F118: -0.5877852523 | G118: -1.175570505
D119: 11.7 | E119: -0.9510565163 | F119: -0.9510565163 | G119: -1.902113033
D120: 11.8 | E120: -0.9510565163 | F120: -0.9510565163 | G120: -1.902113033
D121: 11.9 | E121: -0.5877852523 | F121: -0.5877852523 | G121: -1.175570505
D122: 12 | E122: 5.04321758e-12 | F122: 5.04321758e-12 | G122: 1.008643516e-11
D123: 12.1 | E123: 0.5877852523 | F123: 0.5877852523 | G123: 1.175570505
D124: 12.2 | E124: 0.9510565163 | F124: 0.9510565163 | G124: 1.902113033
D125: 12.3 | E125: 0.9510565163 | F125: 0.9510565163 | G125: 1.902113033
D126: 12.4 | E126: 0.5877852523 | F126: 0.5877852523 | G126: 1.175570505
D127: 12.5 | E127: 8.34707737e-14 | F127: 8.34707737e-14 | G127: 1.669415474e-13
D128: 12.6 | E128: -0.5877852523 | F128: -0.5877852523 | G128: -1.175570505
D129: 12.7 | E129: -0.9510565163 | F129: -0.9510565163 | G129: -1.902113033
D130: 12.8 | E130: -0.9510565163 | F130: -0.9510565163 | G130: -1.902113033
D131: 12.9 | E131: =$B$2*SIN($B$7*D131-$B$8*$B$11+$B$5) -> -0.5877852523 | F131: -0.5877852523 | G131: -1.175570505
D132: 13 | E132: -5.210159127e-12 | F132: -5.210159127e-12 | G132: -1.042031825e-11
D133: 13.1 | E133: 0.5877852523 | F133: 0.5877852523 | G133: 1.175570505
D134: 13.2 | E134: 0.9510565163 | F134: 0.9510565163 | G134: 1.902113033
D135: 13.3 | E135: 0.9510565163 | F135: 0.9510565163 | G135: 1.902113033
D136: 13.4 | E136: 0.5877852523 | F136: 0.5877852523 | G136: 1.175570505
D137: 13.5 | E137: 1.033684748e-11 | F137: 1.033684748e-11 | G137: 2.067369496e-11
D138: 13.6 | E138: -0.5877852523 | F138: -0.5877852523 | G138: -1.175570505
D139: 13.7 | E139: -0.9510565163 | F139: -0.9510565163 | G139: -1.902113033
D140: 13.8 | E140: -0.9510565163 | F140: -0.9510565163 | G140: -1.902113033
D141: 13.9 | E141: -0.5877852523 | F141: -0.5877852523 | G141: -1.175570505
D142: 14 | E142: -1.546353583e-11 | F142: -1.546353583e-11 | G142: -3.092707167e-11
D143: 14.1 | E143: 0.5877852523 | F143: 0.5877852523 | G143: 1.175570505
D144: 14.2 | E144: 0.9510565163 | F144: 0.9510565163 | G144: 1.902113033
D145: 14.3 | E145: 0.9510565163 | F145: 0.9510565163 | G145: 1.902113033
D146: 14.4 | E146: 0.5877852523 | F146: 0.5877852523 | G146: 1.175570505
D147: 14.5 | E147: 2.059022419e-11 | F147: 2.059022419e-11 | G147: 4.118044837e-11
D148: 14.6 | E148: -0.5877852523 | F148: -0.5877852523 | G148: -1.175570505
D149: 14.7 | E149: -0.9510565163 | F149: -0.9510565163 | G149: -1.902113033
D150: 14.8 | E150: -0.9510565163 | F150: -0.9510565163 | G150: -1.902113033
D151: 14.9 | E151: -0.5877852522 | F151: -0.5877852522 | G151: -1.175570504
D152: 15 | E152: -2.571691254e-11 | F152: -2.571691254e-11 | G152: -5.143382508e-11
D153: 15.1 | E153: 0.5877852523 | F153: 0.5877852523 | G153: 1.175570505
D154: 15.2 | E154: 0.9510565163 | F154: 0.9510565163 | G154: 1.902113033
D155: 15.3 | E155: 0.9510565163 | F155: 0.9510565163 | G155: 1.902113033
D156: 15.4 | E156: 0.5877852522 | F156: 0.5877852522 | G156: 1.175570504
D157: 15.5 | E157: 3.084360089e-11 | F157: 3.084360089e-11 | G157: 6.168720179e-11
D158: 15.6 | E158: -0.5877852523 | F158: -0.5877852523 | G158: -1.175570505
D159: 15.7 | E159: -0.9510565163 | F159: -0.9510565163 | G159: -1.902113033
D160: 15.8 | E160: -0.9510565163 | F160: -0.9510565163 | G160: -1.902113033
D161: 15.9 | E161: -0.5877852522 | F161: -0.5877852522 | G161: -1.175570504
D162: 16 | E162: -3.597028925e-11 | F162: -3.597028925e-11 | G162: -7.194057849e-11
D163: 16.1 | E163: 0.5877852523 | F163: 0.5877852523 | G163: 1.175570505
D164: 16.2 | E164: 0.9510565163 | F164: 0.9510565163 | G164: 1.902113033
D165: 16.3 | E165: 0.9510565163 | F165: 0.9510565163 | G165: 1.902113033
D166: 16.4 | E166: 0.5877852522 | F166: 0.5877852522 | G166: 1.175570504
D167: =D166+0.1 -> 16.5 | E167: 4.10969776e-11 | F167: =$C$2*SIN($C$7*D167-$C$8*$B$11+$C$5) -> 4.10969776e-11 | G167: =E167+F167 -> 8.21939552e-11
D168: 16.6 | E168: -0.5877852523 | F168: -0.5877852523 | G168: -1.175570505
D169: 16.7 | E169: -0.9510565163 | F169: -0.9510565163 | G169: -1.902113033
D170: 16.8 | E170: -0.9510565163 | F170: -0.9510565163 | G170: -1.902113033
D171: 16.9 | E171: -0.5877852523 | F171: -0.5877852523 | G171: -1.175570505
D172: 17 | E172: -4.622366595e-11 | F172: -4.622366595e-11 | G172: -9.244733191e-11
D173: 17.1 | E173: 0.5877852523 | F173: 0.5877852523 | G173: 1.175570505
D174: 17.2 | E174: 0.9510565163 | F174: 0.9510565163 | G174: 1.902113033
D175: 17.3 | E175: 0.9510565163 | F175: 0.9510565163 | G175: 1.902113033
D176: 17.4 | E176: 0.5877852523 | F176: 0.5877852523 | G176: 1.175570505
D177: 17.5 | E177: -6.506496752e-11 | F177: -6.506496752e-11 | G177: -1.30129935e-10
D178: 17.6 | E178: -0.5877852523 | F178: -0.5877852523 | G178: -1.175570505
D179: 17.7 | E179: -0.9510565163 | F179: -0.9510565163 | G179: -1.902113033
D180: 17.8 | E180: -0.9510565163 | F180: -0.9510565163 | G180: -1.902113033
D181: 17.9 | E181: -0.5877852523 | F181: -0.5877852523 | G181: -1.175570505
D182: 18 | E182: 5.993827917e-11 | F182: 5.993827917e-11 | G182: 1.198765583e-10
D183: 18.1 | E183: 0.5877852523 | F183: 0.5877852523 | G183: 1.175570505
D184: 18.2 | E184: 0.9510565163 | F184: 0.9510565163 | G184: 1.902113033
D185: 18.3 | E185: 0.9510565163 | F185: 0.9510565163 | G185: 1.902113033
D186: 18.4 | E186: 0.5877852523 | F186: 0.5877852523 | G186: 1.175570505
D187: 18.5 | E187: -5.481159081e-11 | F187: -5.481159081e-11 | G187: -1.096231816e-10
D188: 18.6 | E188: -0.5877852523 | F188: -0.5877852523 | G188: -1.175570505
D189: 18.7 | E189: -0.9510565163 | F189: -0.9510565163 | G189: -1.902113033
D190: 18.8 | E190: -0.9510565163 | F190: -0.9510565163 | G190: -1.902113033
D191: 18.9 | E191: -0.5877852523 | F191: -0.5877852523 | G191: -1.175570505
D192: 19 | E192: 4.968490246e-11 | F192: 4.968490246e-11 | G192: 9.936980492e-11
D193: 19.1 | E193: 0.5877852523 | F193: 0.5877852523 | G193: 1.175570505
D194: 19.2 | E194: 0.9510565163 | F194: 0.9510565163 | G194: 1.902113033
D195: 19.3 | E195: =$B$2*SIN($B$7*D195-$B$8*$B$11+$B$5) -> 0.9510565163 | F195: 0.9510565163 | G195: 1.902113033
D196: 19.4 | E196: 0.5877852523 | F196: 0.5877852523 | G196: 1.175570505
D197: 19.5 | E197: -4.455821411e-11 | F197: -4.455821411e-11 | G197: -8.911642821e-11
D198: 19.6 | E198: -0.5877852523 | F198: -0.5877852523 | G198: -1.175570505
D199: 19.7 | E199: -0.9510565163 | F199: -0.9510565163 | G199: -1.902113033
D200: 19.8 | E200: -0.9510565163 | F200: -0.9510565163 | G200: -1.902113033
... 2 more rows

Sheet Sheet2
C20: Wave 1 | G20: Wave 2
A22: Amplitude: | E22: =Sheet1!B2 -> 1 | I22: =Sheet1!C2 -> 1
A24: Wavelength: | E24: =Sheet1!B3 -> 1 | I24: =Sheet1!C3 -> 1
A26: Speed:: | E26: =Sheet1!B4 -> 1.2 | I26: =Sheet1!C4 -> 1.2
A28: Phase: | E28: =Sheet1!B5 -> 0 | I28: =Sheet1!C5 -> 0
A30: Movement:
